[Event "Titled Tuesday Blitz April 4 Late 2023"]
[White "Danielyan, Vahe"]
[Black "Svane, Frederik"]
[WhiteFideId "13304828"]
[BlackFideId "12923044"]
[WhiteElo "2423"]
[BlackElo "2502"]
[Result "0-1"]
[Round "03"]
[TimeControl "180+2"]
[Date "2023.04.04"]
[WhiteClock "0:00:01"]
[BlackClock "0:00:12"]

1. e4 {[%clk 0:03:00]}  c5 {[%clk 0:02:58]} 2. Nc3 {[%clk 0:03:00]}  e6 {[%clk 0:02:58]} 3. Nf3 {[%clk 0:03:00]}  Nc6 {[%clk 0:02:58]} 4. Bb5 {[%clk 0:03:00]}  Nge7 {[%clk 0:02:58]} 5. O-O {[%clk 0:02:59]}  a6 {[%clk 0:02:58]} 6. Bxc6 {[%clk 0:02:59]}  Nxc6 {[%clk 0:02:59]} 7. d4 {[%clk 0:02:59]}  cxd4 {[%clk 0:03:00]} 8. Nxd4 {[%clk 0:02:59]}  Qc7 {[%clk 0:03:01]} 9. Re1 {[%clk 0:02:55]}  b5 {[%clk 0:02:59]} 10. a4 {[%clk 0:02:53]}  b4 {[%clk 0:02:59]} 11. Nd5 {[%clk 0:02:52]}  exd5 {[%clk 0:02:35]} 12. exd5+ {[%clk 0:02:53]}  Ne7 {[%clk 0:02:35]} 13. Nf5 {[%clk 0:02:41]}  d6 {[%clk 0:02:33]} 14. Nd4 {[%clk 0:02:18]}  Bb7 {[%clk 0:02:24]} 15. Bg5 {[%clk 0:02:18]}  Bxd5 {[%clk 0:02:02]} 16. Nb5 {[%clk 0:02:01]}  axb5 {[%clk 0:01:47]} 17. Qxd5 {[%clk 0:02:00]}  Rb8 {[%clk 0:01:29]} 18. axb5 {[%clk 0:02:00]}  Qc5 {[%clk 0:01:18]} 19. Qxc5 {[%clk 0:01:44]}  dxc5 {[%clk 0:01:18]} 20. Bxe7 {[%clk 0:01:45]}  Bxe7 {[%clk 0:01:15]} 21. Ra7 {[%clk 0:01:46]}  O-O {[%clk 0:01:15]} 22. Rexe7 {[%clk 0:01:44]}  Rxb5 {[%clk 0:01:15]} 23. h3 {[%clk 0:01:38]}  c4 {[%clk 0:01:14]} 24. Rec7 {[%clk 0:01:37]}  c3 {[%clk 0:01:14]} 25. bxc3 {[%clk 0:01:36]}  bxc3 {[%clk 0:01:14]} 26. Rxc3 {[%clk 0:01:37]}  h5 {[%clk 0:01:06]} 27. Rcc7 {[%clk 0:01:37]}  Rf5 {[%clk 0:01:06]} 28. c4 {[%clk 0:00:54]}  Rd8 {[%clk 0:01:04]} 29. Ra2 {[%clk 0:00:53]}  Rd1+ {[%clk 0:01:03]} 30. Kh2 {[%clk 0:00:53]}  Rc1 {[%clk 0:01:04]} 31. Rd2 {[%clk 0:00:35]}  g6 {[%clk 0:00:56]} 32. Kg3 {[%clk 0:00:32]}  Rc3+ {[%clk 0:00:56]} 33. Kh2 {[%clk 0:00:32]}  Kg7 {[%clk 0:00:54]} 34. g3 {[%clk 0:00:30]}  h4 {[%clk 0:00:52]} 35. gxh4 {[%clk 0:00:27]}  Rff3 {[%clk 0:00:52]} 36. Kg2 {[%clk 0:00:26]}  Rxh3 {[%clk 0:00:52]} 37. Rdd7 {[%clk 0:00:23]}  Rhf3 {[%clk 0:00:52]} 38. c5 {[%clk 0:00:19]}  Rf5 {[%clk 0:00:52]} 39. Rd2 {[%clk 0:00:16]}  Rc4 {[%clk 0:00:52]} 40. Kg3 {[%clk 0:00:16]}  Rc3+ {[%clk 0:00:52]} 41. Kg2 {[%clk 0:00:16]}  Rf4 {[%clk 0:00:51]} 42. h5 {[%clk 0:00:11]}  gxh5 {[%clk 0:00:45]} 43. Rc8 {[%clk 0:00:09]}  Rf6 {[%clk 0:00:44]} 44. Rdd8 {[%clk 0:00:05]}  Rc2 {[%clk 0:00:36]} 45. Rg8+ {[%clk 0:00:04]}  Kh6 {[%clk 0:00:37]} 46. Rh8+ {[%clk 0:00:05]}  Kg5 {[%clk 0:00:37]} 47. Rcg8+ {[%clk 0:00:06]}  Kh4 {[%clk 0:00:37]} 48. Kh2 {[%clk 0:00:03]}  Rfxf2+ {[%clk 0:00:36]} 49. Kg1 {[%clk 0:00:02]}  Rfd2 {[%clk 0:00:35]} 50. Kh1 {[%clk 0:00:02]}  Rxc5 {[%clk 0:00:33]} 51. Rg2 {[%clk 0:00:02]}  Rc1+ {[%clk 0:00:33]} 52. Kh2 {[%clk 0:00:01]}  Rd3 {[%clk 0:00:33]} 53. Rf2 {[%clk 0:00:01]}  Rh3+ {[%clk 0:00:30]} 54. Kg2 {[%clk 0:00:01]}  Rg3+ {[%clk 0:00:25]} 55. Kh2 {[%clk 0:00:01]}  Rg7 {[%clk 0:00:11]} 56. Rf5 {[%clk 0:00:01]}  Rc2+ {[%clk 0:00:11]} 57. Kh1 {[%clk 0:00:02]}  Kg3 {[%clk 0:00:11]} 58. Rf1 {[%clk 0:00:01]}  Rh2+ {[%clk 0:00:11]} 59. Kg1 {[%clk 0:00:01]}  Kh3# {[%clk 0:00:12]} 0-1


[Site "https://www.chess.com"]

[Event "Titled Tuesday Blitz April 4 Late 2023"]
[White "Maksimovic, Bojan"]
[Black "Ozates, Tuna"]
[WhiteFideId "14408120"]
[BlackFideId "6354521"]
[WhiteElo "2468"]
[BlackElo "2151"]
[Result "1-0"]
[Round "03"]
[TimeControl "180+2"]
[Date "2023.04.04"]
[WhiteClock "0:00:05"]
[BlackClock "0:00:01"]

1. Nf3 {[%clk 0:03:00]}  c5 {[%clk 0:02:57]} 2. g3 {[%clk 0:03:00]}  Nc6 {[%clk 0:02:58]} 3. Bg2 {[%clk 0:03:00]}  e5 {[%clk 0:02:59]} 4. d3 {[%clk 0:03:00]}  g6 {[%clk 0:02:59]} 5. O-O {[%clk 0:03:01]}  Bg7 {[%clk 0:02:59]} 6. Nbd2 {[%clk 0:03:01]}  Nge7 {[%clk 0:03:00]} 7. e4 {[%clk 0:03:02]}  O-O {[%clk 0:03:00]} 8. c3 {[%clk 0:03:03]}  d6 {[%clk 0:03:01]} 9. a3 {[%clk 0:03:03]}  a5 {[%clk 0:02:59]} 10. a4 {[%clk 0:03:03]}  h6 {[%clk 0:02:59]} 11. Nc4 {[%clk 0:03:04]}  Be6 {[%clk 0:02:59]} 12. Nfd2 {[%clk 0:03:01]}  f5 {[%clk 0:02:55]} 13. exf5 {[%clk 0:02:56]}  gxf5 {[%clk 0:02:53]} 14. f4 {[%clk 0:02:56]}  e4 {[%clk 0:02:47]} 15. dxe4 {[%clk 0:01:56]}  fxe4 {[%clk 0:02:48]} 16. Nxd6 {[%clk 0:01:44]}  Qxd6 {[%clk 0:02:42]} 17. Nxe4 {[%clk 0:01:44]}  Qxd1 {[%clk 0:02:41]} 18. Rxd1 {[%clk 0:01:45]}  Rad8 {[%clk 0:02:34]} 19. Be3 {[%clk 0:01:40]}  b6 {[%clk 0:02:31]} 20. h3 {[%clk 0:01:31]}  Bb3 {[%clk 0:02:26]} 21. Rxd8 {[%clk 0:01:31]}  Rxd8 {[%clk 0:02:27]} 22. Nd2 {[%clk 0:01:30]}  Bd5 {[%clk 0:02:26]} 23. Bxd5+ {[%clk 0:01:25]}  Nxd5 {[%clk 0:02:27]} 24. Kf2 {[%clk 0:01:26]}  Re8 {[%clk 0:02:08]} 25. Nc4 {[%clk 0:01:25]}  Re4 {[%clk 0:02:06]} 26. Rd1 {[%clk 0:00:59]}  Nxc3 {[%clk 0:02:04]} 27. bxc3 {[%clk 0:00:54]}  Rxc4 {[%clk 0:02:04]} 28. Rd6 {[%clk 0:00:54]}  Ne7 {[%clk 0:02:01]} 29. g4 {[%clk 0:00:49]}  Bxc3 {[%clk 0:01:35]} 30. f5 {[%clk 0:00:31]}  Bd4 {[%clk 0:01:11]} 31. Bxd4 {[%clk 0:00:30]}  Rxd4 {[%clk 0:01:11]} 32. Rxb6 {[%clk 0:00:22]}  Rxa4 {[%clk 0:01:09]} 33. Rxh6 {[%clk 0:00:22]}  c4 {[%clk 0:01:02]} 34. Re6 {[%clk 0:00:15]}  Kf7 {[%clk 0:01:01]} 35. Re5 {[%clk 0:00:15]}  Nc6 {[%clk 0:00:45]} 36. Rc5 {[%clk 0:00:15]}  Ne7 {[%clk 0:00:40]} 37. g5 {[%clk 0:00:13]}  Ra3 {[%clk 0:00:33]} 38. f6 {[%clk 0:00:10]}  Ng6 {[%clk 0:00:29]} 39. Rxc4 {[%clk 0:00:02]}  a4 {[%clk 0:00:19]} 40. Rc7+ {[%clk 0:00:02]}  Ke6 {[%clk 0:00:19]} 41. Rc6+ {[%clk 0:00:03]}  Kf5 {[%clk 0:00:18]} 42. f7 {[%clk 0:00:03]}  Nf8 {[%clk 0:00:10]} 43. g6 {[%clk 0:00:03]}  Ra2+ {[%clk 0:00:08]} 44. Kg3 {[%clk 0:00:04]}  Ra3+ {[%clk 0:00:09]} 45. Kh4 {[%clk 0:00:04]}  Rf3 {[%clk 0:00:04]} 46. g7 {[%clk 0:00:05]}  Rf4+ {[%clk 0:00:04]} 47. Kg3 {[%clk 0:00:05]}  Ng6 {[%clk 0:00:01]} 48. f8=Q+ {[%clk 0:00:05]} 1-0


[Site "https://www.chess.com"]

[Event "Titled Tuesday Blitz April 4 Late 2023"]
[White "cryptoguru02"]
[Black "Mammadov, Zaur"]
[BlackFideId "13401033"]
[WhiteElo "2603"]
[BlackElo "2441"]
[Result "0-1"]
[Round "03"]
[TimeControl "180+2"]
[Date "2023.04.04"]
[WhiteClock "0:00:02"]
[BlackClock "0:00:26"]

1. d4 {[%clk 0:03:00]}  d5 {[%clk 0:02:54]} 2. c4 {[%clk 0:03:00]}  dxc4 {[%clk 0:02:54]} 3. Nf3 {[%clk 0:03:00]}  Nf6 {[%clk 0:02:55]} 4. e3 {[%clk 0:03:00]}  e6 {[%clk 0:02:56]} 5. Bxc4 {[%clk 0:03:00]}  c5 {[%clk 0:02:56]} 6. O-O {[%clk 0:02:59]}  cxd4 {[%clk 0:02:57]} 7. exd4 {[%clk 0:02:57]}  Be7 {[%clk 0:02:58]} 8. Nc3 {[%clk 0:02:57]}  O-O {[%clk 0:02:58]} 9. a3 {[%clk 0:02:55]}  Nc6 {[%clk 0:02:59]} 10. Bg5 {[%clk 0:02:54]}  b6 {[%clk 0:02:58]} 11. Re1 {[%clk 0:02:27]}  Bb7 {[%clk 0:02:53]} 12. Ba2 {[%clk 0:02:26]}  Rc8 {[%clk 0:02:44]} 13. Rc1 {[%clk 0:02:25]}  Qd6 {[%clk 0:02:39]} 14. d5 {[%clk 0:02:03]}  exd5 {[%clk 0:02:33]} 15. Nxd5 {[%clk 0:01:51]}  Rfd8 {[%clk 0:02:02]} 16. Nxe7+ {[%clk 0:01:42]}  Nxe7 {[%clk 0:02:02]} 17. Qxd6 {[%clk 0:01:38]}  Rxd6 {[%clk 0:01:59]} 18. Rxc8+ {[%clk 0:01:13]}  Nxc8 {[%clk 0:01:57]} 19. Ne5 {[%clk 0:00:59]}  Bd5 {[%clk 0:01:56]} 20. Bxd5 {[%clk 0:00:53]}  Rxd5 {[%clk 0:01:48]} 21. Bxf6 {[%clk 0:00:49]}  gxf6 {[%clk 0:01:47]} 22. Nc4 {[%clk 0:00:47]}  Kg7 {[%clk 0:01:39]} 23. Kf1 {[%clk 0:00:44]}  f5 {[%clk 0:01:35]} 24. f4 {[%clk 0:00:39]}  Rd4 {[%clk 0:01:31]} 25. Ne3 {[%clk 0:00:34]}  Rxf4+ {[%clk 0:01:31]} 26. Ke2 {[%clk 0:00:34]}  Kg6 {[%clk 0:01:26]} 27. Rc1 {[%clk 0:00:33]}  Ne7 {[%clk 0:01:13]} 28. g3 {[%clk 0:00:33]}  Re4 {[%clk 0:01:13]} 29. Kf3 {[%clk 0:00:33]}  a5 {[%clk 0:01:08]} 30. h4 {[%clk 0:00:31]}  Kf6 {[%clk 0:01:02]} 31. Rc2 {[%clk 0:00:26]}  Re6 {[%clk 0:01:01]} 32. Ng2 {[%clk 0:00:24]}  Nc6 {[%clk 0:01:01]} 33. Rd2 {[%clk 0:00:23]}  Ne5+ {[%clk 0:01:01]} 34. Kf2 {[%clk 0:00:21]}  Ng4+ {[%clk 0:00:54]} 35. Kf3 {[%clk 0:00:21]}  a4 {[%clk 0:00:49]} 36. Nf4 {[%clk 0:00:21]}  Re3+ {[%clk 0:00:45]} 37. Kg2 {[%clk 0:00:21]}  Rb3 {[%clk 0:00:46]} 38. Re2 {[%clk 0:00:18]}  Ne3+ {[%clk 0:00:46]} 39. Kh3 {[%clk 0:00:17]}  Nc4 {[%clk 0:00:44]} 40. Rc2 {[%clk 0:00:15]}  Nxb2 {[%clk 0:00:39]} 41. Rc6+ {[%clk 0:00:15]}  Ke5 {[%clk 0:00:39]} 42. Rc7 {[%clk 0:00:13]}  Rxa3 {[%clk 0:00:34]} 43. Rxf7 {[%clk 0:00:12]}  Rb3 {[%clk 0:00:34]} 44. Ra7 {[%clk 0:00:12]}  a3 {[%clk 0:00:34]} 45. h5 {[%clk 0:00:11]}  b5 {[%clk 0:00:35]} 46. h6 {[%clk 0:00:11]}  Na4 {[%clk 0:00:35]} 47. Rxh7 {[%clk 0:00:10]}  a2 {[%clk 0:00:31]} 48. Re7+ {[%clk 0:00:07]}  Kd6 {[%clk 0:00:27]} 49. Re6+ {[%clk 0:00:07]}  Kd7 {[%clk 0:00:25]} 50. Re1 {[%clk 0:00:02]}  Rb1 {[%clk 0:00:26]} 0-1


[Site "https://www.chess.com"]

[Event "Titled Tuesday Blitz April 4 Late 2023"]
[White "Urazayev, Arystanbek"]
[Black "Di Berardino, Diego Rafael"]
[WhiteFideId "13709810"]
[BlackFideId "2105446"]
[WhiteElo "2449"]
[BlackElo "2432"]
[Result "1-0"]
[Round "03"]
[TimeControl "180+2"]
[Date "2023.04.04"]
[WhiteClock "0:01:19"]
[BlackClock "0:00:32"]

1. e4 {[%clk 0:03:00]}  Nf6 {[%clk 0:02:56]} 2. e5 {[%clk 0:03:00]}  Nd5 {[%clk 0:02:56]} 3. Nc3 {[%clk 0:03:01]}  Nxc3 {[%clk 0:02:56]} 4. dxc3 {[%clk 0:03:02]}  d6 {[%clk 0:02:56]} 5. Nf3 {[%clk 0:03:03]}  Nc6 {[%clk 0:02:51]} 6. Bb5 {[%clk 0:03:03]}  Bg4 {[%clk 0:02:47]} 7. h3 {[%clk 0:03:03]}  Bxf3 {[%clk 0:02:32]} 8. Qxf3 {[%clk 0:03:03]}  d5 {[%clk 0:02:32]} 9. Bg5 {[%clk 0:02:44]}  Qd7 {[%clk 0:02:21]} 10. O-O-O {[%clk 0:02:41]}  O-O-O {[%clk 0:02:15]} 11. Qxf7 {[%clk 0:02:36]}  e6 {[%clk 0:02:04]} 12. Qxd7+ {[%clk 0:02:36]}  Rxd7 {[%clk 0:02:04]} 13. f4 {[%clk 0:02:21]}  Bc5 {[%clk 0:01:58]} 14. Rhe1 {[%clk 0:02:20]}  a6 {[%clk 0:01:39]} 15. Bd3 {[%clk 0:02:16]}  Bf2 {[%clk 0:01:36]} 16. Re2 {[%clk 0:02:13]}  h6 {[%clk 0:01:35]} 17. Bxh6 {[%clk 0:02:07]}  Bh4 {[%clk 0:01:31]} 18. Bg5 {[%clk 0:02:05]}  Bxg5 {[%clk 0:01:31]} 19. fxg5 {[%clk 0:02:06]}  Rh5 {[%clk 0:01:30]} 20. Bg6 {[%clk 0:01:54]}  Rxg5 {[%clk 0:01:29]} 21. Be8 {[%clk 0:01:54]}  Re7 {[%clk 0:01:22]} 22. Bxc6 {[%clk 0:01:54]}  bxc6 {[%clk 0:01:23]} 23. Rf1 {[%clk 0:01:47]}  Rg3 {[%clk 0:01:21]} 24. Kd2 {[%clk 0:01:29]}  Kd7 {[%clk 0:01:20]} 25. Rff2 {[%clk 0:01:29]}  c5 {[%clk 0:01:07]} 26. Re3 {[%clk 0:01:29]}  Rg5 {[%clk 0:01:06]} 27. g4 {[%clk 0:01:28]}  Kc6 {[%clk 0:01:06]} 28. Rf4 {[%clk 0:01:25]}  Rd7 {[%clk 0:01:05]} 29. h4 {[%clk 0:01:24]}  Rg6 {[%clk 0:00:51]} 30. g5 {[%clk 0:01:24]}  d4 {[%clk 0:00:47]} 31. cxd4 {[%clk 0:01:25]}  cxd4 {[%clk 0:00:47]} 32. Rg3 {[%clk 0:01:19]}  Kd5 {[%clk 0:00:32]} 33. h5 {[%clk 0:01:19]}  Kxe5 {[%clk 0:00:32]} 34. Rfg4 {[%clk 0:01:19]} 1-0


[Site "https://www.chess.com"]

[Event "Titled Tuesday Blitz April 4 Late 2023"]
[White "Timofeev, Artyom"]
[Black "Hirneise, Jens"]
[WhiteFideId "4140419"]
[BlackFideId "24614734"]
[WhiteElo "2586"]
[BlackElo "2345"]
[Result "1/2-1/2"]
[Round "03"]
[TimeControl "180+2"]
[Date "2023.04.04"]
[WhiteClock "0:00:15"]
[BlackClock "0:00:20"]

1. c4 {[%clk 0:03:00]}  e5 {[%clk 0:02:48]} 2. d3 {[%clk 0:02:59]}  Nc6 {[%clk 0:02:49]} 3. Nc3 {[%clk 0:02:58]}  Nf6 {[%clk 0:02:48]} 4. Nf3 {[%clk 0:02:53]}  Be7 {[%clk 0:02:45]} 5. g3 {[%clk 0:02:50]}  O-O {[%clk 0:02:46]} 6. Bg2 {[%clk 0:02:50]}  d6 {[%clk 0:02:46]} 7. O-O {[%clk 0:02:49]}  h6 {[%clk 0:02:43]} 8. b3 {[%clk 0:02:47]}  Be6 {[%clk 0:02:43]} 9. h3 {[%clk 0:02:45]}  d5 {[%clk 0:02:42]} 10. cxd5 {[%clk 0:02:45]}  Nxd5 {[%clk 0:02:42]} 11. Bb2 {[%clk 0:02:45]}  Nxc3 {[%clk 0:02:33]} 12. Bxc3 {[%clk 0:02:44]}  f6 {[%clk 0:02:30]} 13. Kh2 {[%clk 0:02:26]}  Qd7 {[%clk 0:02:28]} 14. Nd2 {[%clk 0:02:25]}  Rad8 {[%clk 0:02:23]} 15. a3 {[%clk 0:02:23]}  b6 {[%clk 0:02:14]} 16. b4 {[%clk 0:02:23]}  Nd4 {[%clk 0:02:14]} 17. Rc1 {[%clk 0:02:14]}  c5 {[%clk 0:02:12]} 18. Ne4 {[%clk 0:01:56]}  cxb4 {[%clk 0:02:05]} 19. Bxb4 {[%clk 0:01:55]}  Rc8 {[%clk 0:02:01]} 20. e3 {[%clk 0:01:48]}  Nb3 {[%clk 0:01:51]} 21. Rb1 {[%clk 0:01:20]}  Nc5 {[%clk 0:01:51]} 22. Nxc5 {[%clk 0:01:05]}  Bxc5 {[%clk 0:01:52]} 23. Bxc5 {[%clk 0:01:05]}  Rxc5 {[%clk 0:01:53]} 24. d4 {[%clk 0:01:05]}  exd4 {[%clk 0:01:51]} 25. exd4 {[%clk 0:01:05]}  Ra5 {[%clk 0:01:49]} 26. Qd3 {[%clk 0:00:58]}  Rd8 {[%clk 0:01:47]} 27. Rfd1 {[%clk 0:00:56]}  Bd5 {[%clk 0:01:46]} 28. Rbc1 {[%clk 0:00:37]}  Bxg2 {[%clk 0:01:43]} 29. Kxg2 {[%clk 0:00:37]}  Rd5 {[%clk 0:01:44]} 30. Qb3 {[%clk 0:00:26]}  Kh8 {[%clk 0:01:41]} 31. Rc4 {[%clk 0:00:24]}  b5 {[%clk 0:01:37]} 32. Rcc1 {[%clk 0:00:23]}  a6 {[%clk 0:01:32]} 33. Qf3 {[%clk 0:00:20]}  Rxd4 {[%clk 0:01:28]} 34. Rxd4 {[%clk 0:00:21]}  Qxd4 {[%clk 0:01:29]} 35. Rc6 {[%clk 0:00:21]}  a5 {[%clk 0:01:20]} 36. Ra6 {[%clk 0:00:21]}  a4 {[%clk 0:01:12]} 37. h4 {[%clk 0:00:20]}  Qd5 {[%clk 0:01:07]} 38. Qxd5 {[%clk 0:00:20]}  Rxd5 {[%clk 0:01:07]} 39. Rb6 {[%clk 0:00:20]}  h5 {[%clk 0:01:03]} 40. Rb7 {[%clk 0:00:16]}  Kh7 {[%clk 0:01:00]} 41. f3 {[%clk 0:00:15]}  Kg6 {[%clk 0:00:59]} 42. g4 {[%clk 0:00:15]}  hxg4 {[%clk 0:00:52]} 43. fxg4 {[%clk 0:00:15]}  Rd2+ {[%clk 0:00:50]} 44. Kg3 {[%clk 0:00:15]}  Rd3+ {[%clk 0:00:48]} 45. Kf4 {[%clk 0:00:15]}  Rb3 {[%clk 0:00:32]} 46. h5+ {[%clk 0:00:15]}  Kh6 {[%clk 0:00:31]} 47. Rb8 {[%clk 0:00:15]}  Kh7 {[%clk 0:00:30]} 48. Kf5 {[%clk 0:00:15]}  b4 {[%clk 0:00:20]} 49. axb4 {[%clk 0:00:14]}  a3 {[%clk 0:00:20]} 50. Ra8 {[%clk 0:00:13]}  Rxb4 {[%clk 0:00:19]} 51. Rxa3 {[%clk 0:00:13]}  Rb5+ {[%clk 0:00:19]} 52. Kf4 {[%clk 0:00:14]}  Rb4+ {[%clk 0:00:20]} 53. Kg3 {[%clk 0:00:14]}  Rb5 {[%clk 0:00:20]} 54. Kh4 {[%clk 0:00:14]}  Rc5 {[%clk 0:00:20]} 55. Ra7 {[%clk 0:00:14]}  Rb5 {[%clk 0:00:20]} 56. Rc7 {[%clk 0:00:14]}  Rd5 {[%clk 0:00:20]} 57. Kg3 {[%clk 0:00:14]}  Rb5 {[%clk 0:00:20]} 58. Kf4 {[%clk 0:00:14]}  Rb4+ {[%clk 0:00:20]} 59. Kg3 {[%clk 0:00:14]}  Rb5 {[%clk 0:00:20]} 60. Kh4 {[%clk 0:00:15]}  Ra5 {[%clk 0:00:20]} 61. Rb7 {[%clk 0:00:14]}  Rc5 {[%clk 0:00:20]} 62. Ra7 {[%clk 0:00:15]}  Rb5 {[%clk 0:00:20]} 63. Rc7 {[%clk 0:00:15]} 1/2-1/2


[Site "https://www.chess.com"]

[Event "Titled Tuesday Blitz April 4 Late 2023"]
[White "Bellahcene, Bilel"]
[Black "Gokerkan, Cem Kaan"]
[WhiteFideId "696358"]
[BlackFideId "6336760"]
[WhiteElo "2566"]
[BlackElo "2365"]
[Result "1-0"]
[Round "03"]
[TimeControl "180+2"]
[Date "2023.04.04"]
[WhiteClock "0:00:59"]
[BlackClock "0:00:52"]

1. e4 {[%clk 0:02:49]}  e5 {[%clk 0:02:59]} 2. Nf3 {[%clk 0:02:43]}  Nf6 {[%clk 0:03:00]} 3. Nxe5 {[%clk 0:02:28]}  d5 {[%clk 0:02:59]} 4. exd5 {[%clk 0:02:25]}  Qxd5 {[%clk 0:03:00]} 5. d4 {[%clk 0:02:23]}  Nc6 {[%clk 0:03:00]} 6. Nf3 {[%clk 0:02:16]}  Bg4 {[%clk 0:02:56]} 7. Be2 {[%clk 0:02:16]}  O-O-O {[%clk 0:02:55]} 8. c3 {[%clk 0:02:13]}  Bd6 {[%clk 0:02:51]} 9. Nbd2 {[%clk 0:02:08]}  Rhe8 {[%clk 0:02:50]} 10. h3 {[%clk 0:02:03]}  Qh5 {[%clk 0:02:50]} 11. Kf1 {[%clk 0:02:00]}  Nd5 {[%clk 0:02:36]} 12. Nc4 {[%clk 0:01:53]}  Bf4 {[%clk 0:02:11]} 13. Kg1 {[%clk 0:01:44]}  Bxf3 {[%clk 0:01:41]} 14. Bxf3 {[%clk 0:01:43]}  Qg5 {[%clk 0:01:40]} 15. h4 {[%clk 0:01:35]}  Qe7 {[%clk 0:01:25]} 16. Bxf4 {[%clk 0:01:22]}  Nxf4 {[%clk 0:01:26]} 17. Bxc6 {[%clk 0:01:19]}  bxc6 {[%clk 0:01:11]} 18. Qg4+ {[%clk 0:01:14]}  Ne6 {[%clk 0:01:11]} 19. Ne5 {[%clk 0:01:10]}  Kb7 {[%clk 0:01:00]} 20. Rh3 {[%clk 0:01:02]}  f6 {[%clk 0:00:58]} 21. Nd3 {[%clk 0:01:02]}  c5 {[%clk 0:00:51]} 22. Re3 {[%clk 0:00:59]}  cxd4 {[%clk 0:00:52]} 23. Rxe6 {[%clk 0:00:59]} 1-0


[Site "https://www.chess.com"]

[Event "Titled Tuesday Blitz April 4 Late 2023"]
[White "Sargsyan, Shant"]
[Black "Rios Escobar, Adan"]
[WhiteFideId "13306766"]
[BlackFideId "3403645"]
[WhiteElo "2628"]
[BlackElo "2464"]
[Result "1-0"]
[Round "03"]
[TimeControl "180+2"]
[Date "2023.04.04"]
[WhiteClock "0:02:17"]
[BlackClock "0:00:20"]

1. b3 {[%clk 0:03:00]}  c5 {[%clk 0:02:50]} 2. Bb2 {[%clk 0:03:00]}  d6 {[%clk 0:02:51]} 3. g3 {[%clk 0:03:01]}  e5 {[%clk 0:02:51]} 4. c4 {[%clk 0:03:01]}  Nc6 {[%clk 0:02:50]} 5. Bg2 {[%clk 0:03:02]}  g6 {[%clk 0:02:51]} 6. e3 {[%clk 0:03:02]}  Bg7 {[%clk 0:02:51]} 7. Ne2 {[%clk 0:03:03]}  Nge7 {[%clk 0:02:52]} 8. O-O {[%clk 0:03:04]}  O-O {[%clk 0:02:53]} 9. Nbc3 {[%clk 0:03:04]}  a6 {[%clk 0:02:46]} 10. d3 {[%clk 0:03:03]}  Rb8 {[%clk 0:02:44]} 11. a4 {[%clk 0:03:02]}  Be6 {[%clk 0:02:37]} 12. Nd5 {[%clk 0:02:59]}  Bxd5 {[%clk 0:02:30]} 13. cxd5 {[%clk 0:03:00]}  Nb4 {[%clk 0:02:30]} 14. Nc3 {[%clk 0:02:55]}  b6 {[%clk 0:02:20]} 15. e4 {[%clk 0:02:54]}  h5 {[%clk 0:02:13]} 16. h4 {[%clk 0:02:53]}  Bh6 {[%clk 0:02:12]} 17. Ne2 {[%clk 0:02:47]}  Kg7 {[%clk 0:02:09]} 18. f4 {[%clk 0:02:47]}  f6 {[%clk 0:02:04]} 19. Bh3 {[%clk 0:02:47]}  Qc7 {[%clk 0:01:59]} 20. Be6 {[%clk 0:02:47]}  Qb7 {[%clk 0:01:58]} 21. Kh2 {[%clk 0:02:44]}  a5 {[%clk 0:01:44]} 22. f5 {[%clk 0:02:36]}  gxf5 {[%clk 0:01:39]} 23. Bxf5 {[%clk 0:02:35]}  Nxf5 {[%clk 0:01:34]} 24. Rxf5 {[%clk 0:02:36]}  Qf7 {[%clk 0:01:29]} 25. Nc3 {[%clk 0:02:36]}  Qg6 {[%clk 0:01:24]} 26. Ba3 {[%clk 0:02:28]}  Rg8 {[%clk 0:01:23]} 27. Bxb4 {[%clk 0:02:27]}  axb4 {[%clk 0:01:22]} 28. Nb5 {[%clk 0:02:27]}  Kh7 {[%clk 0:01:21]} 29. Qf3 {[%clk 0:02:27]}  Rbf8 {[%clk 0:00:55]} 30. Rf1 {[%clk 0:02:23]}  Rg7 {[%clk 0:00:53]} 31. Nxd6 {[%clk 0:02:22]}  Rfg8 {[%clk 0:00:52]} 32. Rxh5 {[%clk 0:02:17]}  Qxg3+ {[%clk 0:00:19]} 33. Qxg3 {[%clk 0:02:18]}  Rxg3 {[%clk 0:00:20]} 34. Rxh6+ {[%clk 0:02:17]} 1-0


[Site "https://www.chess.com"]

[Event "Titled Tuesday Blitz April 4 Late 2023"]
[White "Gadimbayli, Abdulla"]
[Black "Meunier-Pion, Jean"]
[WhiteFideId "13404938"]
[BlackFideId "20685327"]
[WhiteElo "2390"]
[BlackElo "2124"]
[Result "1-0"]
[Round "03"]
[TimeControl "180+2"]
[Date "2023.04.04"]
[WhiteClock "0:01:17"]
[BlackClock "0:00:42"]

1. e4 {[%clk 0:03:00]}  c5 {[%clk 0:03:00]} 2. Nf3 {[%clk 0:03:00]}  d6 {[%clk 0:03:00]} 3. d4 {[%clk 0:03:00]}  cxd4 {[%clk 0:03:01]} 4. Nxd4 {[%clk 0:03:01]}  Nf6 {[%clk 0:03:01]} 5. Nc3 {[%clk 0:03:01]}  a6 {[%clk 0:03:02]} 6. g3 {[%clk 0:03:02]}  e5 {[%clk 0:03:02]} 7. Nf3 {[%clk 0:03:02]}  Be7 {[%clk 0:03:02]} 8. Bg2 {[%clk 0:03:03]}  O-O {[%clk 0:03:02]} 9. O-O {[%clk 0:03:04]}  b5 {[%clk 0:03:03]} 10. a4 {[%clk 0:03:04]}  b4 {[%clk 0:03:03]} 11. Nd5 {[%clk 0:03:05]}  Nbd7 {[%clk 0:03:03]} 12. Nxb4 {[%clk 0:03:04]}  Rb8 {[%clk 0:03:02]} 13. Nc6 {[%clk 0:03:04]}  Qe8 {[%clk 0:03:00]} 14. Nxb8 {[%clk 0:03:05]}  Nxb8 {[%clk 0:03:01]} 15. Re1 {[%clk 0:03:03]}  Be6 {[%clk 0:03:02]} 16. b3 {[%clk 0:03:03]}  Qc6 {[%clk 0:03:02]} 17. Ba3 {[%clk 0:03:02]}  Rc8 {[%clk 0:03:02]} 18. c4 {[%clk 0:03:02]}  Nbd7 {[%clk 0:03:02]} 19. Qc2 {[%clk 0:03:02]}  a5 {[%clk 0:03:02]} 20. Qc3 {[%clk 0:03:01]}  Nc5 {[%clk 0:03:02]} 21. Nd2 {[%clk 0:02:56]}  Qb6 {[%clk 0:02:56]} 22. Rab1 {[%clk 0:02:57]}  Rb8 {[%clk 0:02:54]} 23. b4 {[%clk 0:02:52]}  Nxa4 {[%clk 0:02:54]} 24. Qc2 {[%clk 0:02:53]}  Qc6 {[%clk 0:02:50]} 25. b5 {[%clk 0:02:51]}  Qb6 {[%clk 0:02:45]} 26. Qxa4 {[%clk 0:02:51]}  Ng4 {[%clk 0:02:46]} 27. c5 {[%clk 0:02:49]}  dxc5 {[%clk 0:02:45]} 28. h3 {[%clk 0:02:41]}  Nxf2 {[%clk 0:02:44]} 29. Kxf2 {[%clk 0:02:42]}  c4+ {[%clk 0:02:45]} 30. Kf1 {[%clk 0:02:42]}  c3 {[%clk 0:02:31]} 31. Bxe7 {[%clk 0:02:28]}  cxd2 {[%clk 0:02:31]} 32. Re2 {[%clk 0:02:26]}  Rc8 {[%clk 0:02:07]} 33. Rxd2 {[%clk 0:02:20]}  Qe3 {[%clk 0:01:33]} 34. Rbd1 {[%clk 0:02:14]}  h6 {[%clk 0:01:26]} 35. Rd8+ {[%clk 0:02:13]}  Rxd8 {[%clk 0:01:26]} 36. Rxd8+ {[%clk 0:01:52]}  Kh7 {[%clk 0:01:27]} 37. Qc2 {[%clk 0:01:44]}  Bb3 {[%clk 0:01:22]} 38. Rd3 {[%clk 0:01:24]}  Qa7 {[%clk 0:00:56]} 39. Qxb3 {[%clk 0:01:21]}  Qxe7 {[%clk 0:00:57]} 40. b6 {[%clk 0:01:20]}  Qc5 {[%clk 0:00:55]} 41. b7 {[%clk 0:01:19]}  a4 {[%clk 0:00:54]} 42. Qxa4 {[%clk 0:01:18]}  Qc1+ {[%clk 0:00:54]} 43. Qd1 {[%clk 0:01:19]}  Qc7 {[%clk 0:00:53]} 44. Rb3 {[%clk 0:01:19]}  Qb8 {[%clk 0:00:50]} 45. Kg1 {[%clk 0:01:19]}  g6 {[%clk 0:00:50]} 46. Kh2 {[%clk 0:01:19]}  h5 {[%clk 0:00:51]} 47. Qd5 {[%clk 0:01:19]}  Kh6 {[%clk 0:00:51]} 48. Qc6 {[%clk 0:01:18]}  h4 {[%clk 0:00:50]} 49. gxh4 {[%clk 0:01:18]}  f5 {[%clk 0:00:47]} 50. Qc8 {[%clk 0:01:17]}  Qd6 {[%clk 0:00:42]} 51. Qh8# {[%clk 0:01:17]} 1-0


[Site "https://www.chess.com"]